bitfinex/quotes_ETHUSD_20240823
["timestamp","ask_amount","ask_price","bid_price","bid_amount"]
[1724430751941,3.74949072,2672.7,2672.4,3.74194]
[1724430752138,3.74949072,2672.7,2672.2,6.08033]
[1724430752139,2.89570405,2672.6,2671.8,22.1781]
[1724430752358,2.34282473,2672.3,2672.0,3.7424]
[1724430752562,2.5055234,2672.2,2672.0,3.7424]
[1724430752746,2.34282473,2672.2,2672.1,3.74237]
[1724430752940,2.34303659,2672.2,2672.1,3.74237]
[1724430753536,2.34303659,2672.2,2671.8,23.5827]
[1724430753727,2.34240521,2672.0,2671.8,23.5827]
[1724430753926,2.34240521,2671.9,2671.8,19.84]
[1724430754149,1.06082946,2672.2,2671.8,19.84]
[1724430754430,2.34259496,2671.9,2671.8,19.84]
[1724430756067,3.74266,2671.9,2671.3,3.74343]
[1724430756327,1.95295734,2671.4,2671.3,3.74349]
[1724430757200,1.56217841,2671.4,2671.3,3.74349]
[1724430757736,1.56217841,2671.4,2671.3,7.48698]
[1724430757936,1.95295734,2671.6,2671.5,7.48642]
[1724430758143,2.34354881,2671.8,2671.6,3.74296]
[1724430759547,2.34354881,2671.8,2671.7,3.74293]
[1724430759742,2.34354881,2671.9,2671.7,3.74293]
[1724430760548,2.34354881,2671.9,2671.8,3.74279]
[1724430760949,2.3420026,2671.9,2671.6,3.74303]
[1724430761471,1.95125393,2671.7,2671.6,3.74303]
[1724430761848,1.95133728,2671.7,2671.6,3.74303]
[1724430762171,2.3420026,2671.9,2671.5,3.74311]
[1724430762374,1.95139603,2671.6,2671.5,3.74311]
[1724430762563,1.95139603,2671.6,2671.4,3.74328]
[1724430762749,1.56112134,2671.5,2671.4,3.74328]
[1724430763144,1.95139603,2671.5,2671.4,3.74328]
[1724430763957,1.95139603,2671.6,2671.4,3.74328]
[1724430764161,1.56035088,2671.5,2671.4,3.74328]
[1724430764381,1.95139603,2671.6,2671.4,3.74328]
[1724430765187,1.95139603,2671.6,2671.3,3.74341]
[1724430765188,1.95139603,2671.5,2671.3,3.74341]
[1724430765387,0.42933986,2671.6,2671.3,3.74341]
[1724430765564,1.94973426,2671.5,2671.4,3.74335]
[1724430765883,1.94973426,2671.5,2671.4,7.4867]
[1724430766073,1.94973426,2671.6,2671.5,3.74321]
[1724430766273,1.94973426,2671.6,2671.5,7.48642]
[1724430766479,6.36743821,2672.3,2671.6,3.74307]
[1724430766480,1.94973426,2671.7,2671.6,3.74307]
[1724430766674,1.94973426,2671.7,2671.6,7.48614]
[1724430767317,2.33968067,2672.0,2671.7,3.74282]
[1724430768267,2.33968067,2672.0,2671.8,3.74269]
[1724430768485,2.33968067,2672.0,2671.8,6.02539]
[1724430769712,2.33968067,2672.1,2671.8,9.76811]
[1724430769892,2.33968067,2672.1,2671.8,6.02539]
[1724430770195,2.2779,2672.2,2671.6,3.74299]
[1724430770359,1.95,2671.7,2671.6,3.74299]
[1724430770688,1.95,2671.7,2671.6,7.48606]
[1724430771276,3.50991797,2671.7,2671.6,9.76876]
[1724430771664,1.55991797,2671.8,2671.7,7.48586]
[1724430772091,1.55991797,2671.8,2671.7,9.76856]
[1724430772300,1.55991797,2671.8,2671.7,13.51149]
[1724430772460,1.95,2672.0,2671.9,7.4853]
[1724430772461,1.55991797,2672.0,2671.9,7.4853]
[1724430772855,1.95,2672.0,2671.9,3.74265]
[1724430773081,2.50264881,2672.2,2671.9,3.74265]
[1724430773296,2.33994223,2672.2,2671.7,6.02553]
[1724430773478,1.55970884,2671.8,2671.7,6.02553]
[1724430774114,1.55970884,2671.8,2671.7,9.76846]
[1724430775456,1.94968382,2671.9,2671.7,9.76846]
[1724430775457,1.55970884,2671.9,2671.8,7.48558]
[1724430776001,1.94968382,2672.0,2671.5,19.84]
[1724430776002,8.55461058,2672.0,2671.5,19.84]
[1724430776214,1.94979781,2671.6,2671.5,19.84]
[1724430776532,2.33962058,2671.7,2671.5,19.84]
[1724430776690,0.16270658,2671.8,2671.5,19.84]
[1724430776691,2.33962058,2671.8,2671.5,19.84]
[1724430776904,2.50236983,2671.7,2671.5,19.84]
[1724430777101,2.33962058,2671.8,2671.5,19.84]
[1724430777304,1.94940127,2671.6,2671.5,23.58313]
[1724430777513,2.33962058,2671.8,2671.5,23.58313]
[1724430777909,2.33962058,2671.8,2671.6,3.74305]
[1724430778096,1.94951825,2671.7,2671.6,3.74305]
[1724430778300,2.33962058,2671.9,2671.6,3.74305]
[1724430779216,2.89229257,2672.1,2671.6,3.74305]
[1724430779217,2.5023558,2671.8,2671.6,3.74305]
[1724430779419,2.33929152,2671.8,2671.6,3.74305]
[1724430779623,2.33929152,2671.8,2671.7,3.74293]
[1724430779778,9.45214613,2672.3,2671.6,3.74305]
[1724430779779,2.33929152,2671.9,2671.8,3.74279]
[1724430779986,2.33929152,2672.0,2671.8,3.74279]
[1724430780207,2.33929152,2672.1,2671.9,3.74258]
[1724430780383,2.33929152,2672.1,2672.0,3.74251]
[1724430780623,2.33929152,2672.1,2671.9,3.74258]
[1724430780810,13.46431993,2672.6,2672.0,6.18221]
[1724430780811,2.50201828,2672.2,2672.0,6.18221]
[1724430780995,2.33929152,2672.2,2672.0,2.4397]
[1724430781205,1.94897766,2672.2,2672.1,3.74237]
[1724430781386,3.50820466,2672.3,2672.1,5.4397]
[1724430781585,3.50820466,2672.3,2672.2,7.48446]
[1724430782121,3.50820466,2672.3,2672.1,5.4397]
[1724430782122,1.16906715,2672.2,2672.1,2.4397]
[1724430782335,1.94727718,2672.2,2672.0,3.74242]
[1724430782532,1.55794769,2672.1,2672.0,3.74242]
[1724430782881,1.94743461,2672.3,2672.0,3.74242]
[1724430783140,2.33692153,2672.4,2672.2,3.74223]
[1724430783935,2.33692153,2672.5,2672.0,7.48482]
[1724430784244,1.9472628,2672.2,2672.0,3.7424]
[1724430784386,1.9472628,2672.1,2672.0,3.7424]
[1724430785323,1.94689444,2672.1,2672.0,3.7424]
[1724430786037,4.68652153,2672.3,2671.7,3.74283]
[1724430786322,1.94683776,2671.9,2671.7,3.74283]
[1724430786531,1.55758272,2671.8,2671.7,3.74283]
[1724430788503,2.33666939,2672.1,2671.8,3.74279]
[1724430789282,1.94737463,2671.9,2671.8,3.74279]
[1724430789458,2.33666939,2672.1,2671.8,3.74279]
[1724430789630,1.94765526,2671.9,2671.8,3.74271]
[1724430789800,1.55810828,2672.0,2671.9,7.4853]
[1724430789994,1.55810828,2672.0,2671.5,19.84]
[1724430789995,1.55810828,2672.1,2672.0,9.84072]
[1724430790232,1.55810828,2672.2,2672.1,7.48474]
[1724430790621,1.94765526,2672.3,2672.2,3.74223]
[1724430791497,2.33666939,2672.5,2672.2,3.74223]
[1724430791734,1.94673042,2672.3,2672.2,3.74223]
[1724430792037,1.94666244,2672.3,2672.2,3.74223]
[1724430792734,1.94666244,2672.3,2672.1,7.48466]
[1724430792936,1.94666244,2672.3,2672.2,3.74223]
[1724430793300,3.89383291,2672.3,2672.2,3.74223]
[1724430793500,1.94666244,2672.3,2672.2,3.74223]
[1724430793835,3.89390082,2672.3,2672.2,7.48446]
[1724430794248,1.94666244,2672.3,2672.2,9.79156]
[1724430794844,3.50425605,2672.3,2672.2,9.79156]
[1724430795855,3.1144121,2672.3,2672.2,9.79156]
[1724430796052,3.1144121,2672.3,2672.2,3.74223]
[1724430796053,3.50425605,2672.3,2672.2,3.74223]
[1724430796277,1.94666244,2672.3,2672.2,3.74223]
[1724430796694,3.50326908,2672.3,2672.2,3.74223]
[1724430797207,3.89258111,2672.3,2672.2,3.74223]
[1724430797404,4.51534946,2672.3,2672.1,3.74235]
[1724430797694,1.55655556,2672.2,2672.1,3.74235]
[1724430798067,1.55655556,2672.2,2672.1,7.48472]
[1724430799169,1.55655556,2672.3,2672.2,7.48446]
[1724430799771,1.55655556,2672.4,2672.3,7.48418]
[1724430799973,1.55655556,2672.4,2672.3,9.75658]
[1724430800189,1.94591867,2672.5,2672.4,3.74195]
[1724430800689,2.33510241,2672.7,2672.4,3.74195]
[1724430800892,1.94528271,2672.5,2672.4,3.74195]
[1724430801076,1.94524875,2672.5,2672.4,3.74195]
[1724430801277,2.79550157,2672.7,2672.4,3.74195]
[1724430801893,2.33430133,2672.6,2672.4,3.74195]
[1724430802308,2.79550157,2672.7,2672.4,3.74195]
[1724430802465,0.27955016,2672.6,2672.4,3.74195]
[1724430803582,1.94484581,2672.5,2672.4,3.74195]
[1724430803782,0.27955016,2672.6,2672.4,3.74195]
[1724430803969,2.61385149,2672.6,2672.4,3.74195]
[1724430804182,2.2676,2672.5,2672.3,3.74201]
[1724430804417,0.48814515,2672.4,2672.0,3.74242]
[1724430804628,1.55588625,2672.1,2672.0,3.74242]
[1724430804837,1.94485782,2672.2,2672.0,3.74242]
[1724430804972,1.94485782,2672.1,2672.0,3.74242]
[1724430805479,1.94485782,2672.2,2672.1,3.74237]
[1724430805700,2.82270161,2672.4,2672.1,3.74237]
[1724430805916,2.33455646,2672.4,2672.3,3.74209]
[1724430806200,1.94554273,2672.4,2672.3,3.74209]
[1724430806404,2.33455646,2672.6,2672.5,3.7417]
[1724430807762,2.33455646,2672.7,2672.6,3.74167]
[1724430807962,3.21731063,2673.2,2672.7,3.74153]
[1724430807963,2.33455646,2672.8,2672.7,3.74153]
[1724430808967,2.72364921,2673.1,2672.8,7.48278]
[1724430808968,2.33455646,2672.9,2672.8,7.48278]
[1724430809335,2.33455646,2672.9,2672.8,3.74139]
[1724430809609,2.33455646,2673.0,2672.9,3.74125]
[1724430809779,2.33455646,2673.1,2673.0,3.74111]
[1724430810016,2.72364921,2673.3,2673.0,3.74111]
[1724430810017,2.33524309,2673.3,2673.0,3.74111]
[1724430810223,3.08802243,2673.3,2673.0,3.74111]
[1724430810433,1.94527626,2673.1,2673.0,3.74111]
[1724430810603,3.08777505,2673.3,2673.0,3.74111]
[1724430812300,1.94508374,2673.1,2673.0,3.74111]
[1724430812504,3.08777505,2673.3,2673.0,3.74111]
[1724430812706,2.64377322,2673.2,2672.6,3.7416]
[1724430812935,1.55613468,2672.7,2672.6,3.7416]
[1724430813205,1.55613468,2672.8,2672.7,3.74153]
[1724430813444,1.55603242,2672.8,2672.7,3.74153]
[1724430813841,1.94516835,2672.8,2672.7,3.74153]
[1724430814188,1.55606185,2672.8,2672.7,3.74153]
[1724430815648,1.55606185,2672.8,2672.6,3.74163]
[1724430815849,1.55606185,2672.7,2672.6,3.74163]
[1724430816739,1.94516835,2672.9,2672.7,3.74153]
[1724430816936,1.55603912,2672.8,2672.7,3.74153]
[1724430817398,1.55603912,2672.8,2672.7,7.48306]
[1724430819826,1.55603912,2672.9,2672.8,3.74139]
[1724430820898,1.94516835,2673.0,2672.8,3.74139]
[1724430821031,2.40406251,2673.0,2672.8,3.74139]
[1724430821477,1.94516835,2672.9,2672.8,3.74139]
[1724430821788,1.94516835,2672.9,2672.7,7.48297]
[1724430821991,1.55554856,2672.8,2672.7,7.48297]
[1724430822496,1.94516835,2673.0,2672.8,7.48278]
[1724430822497,1.16692778,2672.9,2672.8,7.48278]
[1724430822661,1.16692778,2672.9,2672.8,9.77918]
[1724430823292,1.94516835,2673.1,2673.0,3.74111]
[1724430823594,2.3735305,2673.1,2673.0,3.74111]
[1724430823801,1.94551409,2673.1,2673.0,3.74111]
[1724430823945,2.33499571,2673.3,2673.0,3.74111]
[1724430824462,6.87801546,2673.5,2673.0,3.74111]
[1724430824463,4.1538538,2673.5,2673.0,3.74111]
[1724430824794,1.94579593,2673.1,2673.0,3.74111]
[1724430825801,2.3352354,2673.3,2672.9,3.74124]
[1724430826008,0.55,2673.4,2672.9,3.74124]
[1724430826009,1.94553684,2673.0,2672.9,3.74124]
[1724430826153,4.98125894,2673.2,2672.9,3.74124]
[1724430826355,4.98125894,2673.2,2673.0,3.7411]
[1724430827373,0.28852354,2673.2,2673.0,3.7411]
[1724430827809,2.62322944,2673.2,2673.0,3.7411]
[1724430828001,0.28852354,2673.2,2673.0,3.7411]
[1724430828962,0.28852354,2673.2,2672.8,7.48256]
[1724430829163,1.94584286,2672.9,2672.8,3.74125]
[1724430829480,2.62322944,2673.2,2673.0,3.74111]
[1724430829481,0.28852354,2673.2,2673.0,3.74111]
[1724430830052,0.28852354,2673.2,2673.1,3.74097]
[1724430830257,2.33516747,2673.3,2673.0,3.74111]
[1724430830957,2.33516747,2673.2,2672.9,3.74125]
[1724430831303,2.33516747,2673.2,2672.6,7.48311]
[1724430831601,2.33516747,2673.2,2672.5,2.3813]
[1724430831602,1.55681927,2672.7,2672.5,3.74178]
[1724430831799,1.55681927,2672.7,2671.4,3.74331]
[1724430831800,2.3994,2672.5,2672.0,3.74243]
[1724430832003,1.16743083,2672.1,2672.0,7.48494]
[1724430832357,1.55657444,2672.2,2672.1,3.74237]
[1724430832557,1.55657444,2672.2,2672.1,7.48474]
[1724430832786,1.16764137,2672.2,2672.1,9.86374]
[1724430833200,1.16764137,2672.3,2672.2,11.22669]
[1724430833531,1.16764137,2672.3,2672.2,7.48446]
[1724430833656,1.16764137,2672.4,2672.3,7.48418]
[1724430834281,1.55657444,2672.5,2672.3,3.74209]
[1724430834500,1.55657444,2672.4,2672.3,3.74209]
[1724430835901,1.94614239,2672.5,2672.3,3.74209]
[1724430836085,2.37429372,2672.5,2672.3,3.74209]
[1724430836281,1.55673164,2672.4,2672.3,3.74209]
[1724430836457,1.55675707,2672.4,2672.3,3.74209]
[1724430836896,1.55675707,2672.4,2672.3,7.48418]
[1724430837908,1.55675707,2672.4,2672.3,13.60747]
[1724430837909,2.72419613,2672.4,2672.3,13.60747]
[1724430838067,1.16743906,2672.5,2672.4,7.4839]
[1724430838257,1.55675707,2672.6,2672.5,7.48362]
[1724430838681,1.94599517,2672.7,2672.6,3.74167]
[1724430838904,1.94599517,2672.7,2672.6,7.48334]
[1724430840297,2.3351942,2672.9,2672.7,3.74146]
[1724430840474,2.3351942,2673.0,2672.6,6.19107]
[1724430840670,1.94586486,2672.7,2672.6,6.19107]
[1724430841676,1.94586486,2672.7,2672.6,9.93274]
[1724430841878,1.94586486,2672.7,2672.6,6.19107]
[1724430842206,2.3351942,2672.8,2672.6,3.74167]
[1724430842574,2.3351942,2672.8,2672.0,2.358]
[1724430842780,1.9472362,2672.4,2672.3,3.74209]
[1724430842995,1.9472362,2672.4,2672.2,3.74221]
[1724430843169,1.55769881,2672.3,2672.2,3.74221]
[1724430845109,1.55769881,2672.4,2672.3,7.48418]
[1724430845766,1.9472362,2672.5,2672.4,3.74195]
[1724430846282,2.3351942,2672.7,2672.4,3.74195]
[1724430846485,0.23351942,2672.6,2672.4,3.74195]
[1724430846881,0.23351942,2672.6,2672.5,3.74181]
[1724430847183,2.33433679,2672.7,2672.5,3.74181]
[1724430848536,2.33433679,2672.7,2672.6,3.74167]
[1724430848670,0.26076335,2672.9,2672.6,3.74167]
[1724430848671,2.33433679,2672.8,2672.6,3.74167]
[1724430849175,2.72339292,2673.0,2672.4,2.2575]
[1724430849176,2.33433679,2673.0,2672.9,3.74125]
[1724430849367,2.33433679,2673.1,2673.0,3.74111]
[1724430850806,2.33433679,2673.1,2672.8,5.99876]
[1724430850984,2.33433679,2673.0,2672.9,3.74123]
[1724430851195,2.72339292,2673.3,2672.9,3.74123]
[1724430851196,2.33433679,2673.1,2672.9,3.74123]
[1724430851405,2.33433679,2673.0,2672.9,3.74123]
[1724430851718,2.72339292,2673.3,2673.0,3.74109]
[1724430851719,2.33518064,2673.1,2673.0,3.74109]
[1724430852287,2.33518064,2673.2,2673.1,3.74097]
[1724430852524,9.36450838,2673.7,2673.1,3.74097]
[1724430852525,2.33518064,2673.3,2673.2,3.74083]
[1724430852694,2.72456045,2673.6,2673.2,3.74083]
[1724430852695,2.33518064,2673.4,2673.2,3.74083]
[1724430853026,2.33518064,2673.4,2673.0,3.741]
[1724430853209,2.72456045,2673.6,2673.0,3.741]
[1724430853210,1.94636266,2673.1,2673.0,3.741]
[1724430853419,2.33518064,2673.3,2673.0,3.741]
[1724430853585,2.84115475,2673.3,2673.0,3.741]
[1724430853796,2.33518064,2673.2,2673.0,3.741]
[1724430854131,2.33518064,2673.2,2672.8,7.48263]
[1724430854303,1.94617121,2672.9,2672.8,7.48263]
[1724430856132,0.50597411,2673.3,2672.9,7.4825]
[1724430856133,1.94617121,2673.0,2672.9,7.4825]
[1724430857016,1.94617121,2673.1,2673.0,3.74111]
[1724430857217,1.94617121,2673.1,2673.0,7.48222]
[1724430857517,1.55682204,2673.1,2673.0,9.95962]
[1724430858104,1.55682204,2673.2,2673.1,13.70031]
[1724430858303,1.94617121,2673.4,2673.3,3.74069]
[1724430858304,1.55682204,2673.4,2673.3,3.74069]
[1724430858631,7.37224083,2674.2,2673.2,2.4774]
[1724430858632,1.94617121,2673.6,2673.5,3.74041]
[1724430859029,2.33518064,2673.8,2673.5,3.74041]
[1724430859229,2.33518064,2673.8,2673.6,3.74027]
[1724430859412,2.84115475,2673.8,2673.6,3.74027]
[1724430859740,2.33518064,2673.8,2673.6,3.74027]
[1724430859960,2.33518064,2673.8,2673.6,6.10177]
[1724430860650,2.33518064,2673.9,2673.6,6.10177]
[1724430860849,1.94464473,2673.7,2673.6,6.10177]
[1724430861050,1.94464473,2673.7,2673.6,9.84204]
[1724430861929,2.33326359,2674.0,2673.7,3.74001]
[1724430862130,2.33326359,2674.0,2673.6,6.10177]
[1724430862344,1.94431878,2673.8,2673.7,3.74013]
[1724430863044,1.94431878,2673.9,2673.8,3.73999]
[1724430863431,1.55484316,2673.9,2673.8,3.73999]
[1724430863752,1.55484316,2674.0,2673.9,3.73985]
[1724430864372,1.55484316,2674.0,2673.9,6.18425]
[1724430864674,1.55484316,2674.1,2674.0,3.73971]
[1724430864874,1.55484316,2674.1,2674.0,7.47942]
[1724430865237,1.55484316,2674.2,2674.1,7.47914]
[1724430865672,1.55484316,2674.4,2674.0,0.07478607]
[1724430865831,0.77734087,2674.2,2674.1,3.73954]
[1724430866035,0.77734087,2674.3,2674.2,3.73943]
[1724430866236,0.77734087,2674.3,2674.2,23.57943]
[1724430866746,0.77734087,2674.4,2674.3,3.73929]
[1724430866946,1.16601131,2674.5,2674.3,3.73929]
[1724430867521,0.77594258,2674.4,2674.3,3.73929]
[1724430869470,0.77594258,2674.5,2674.3,3.73929]
[1724430869771,0.77594258,2674.5,2674.3,3.73919]
[1724430870184,0.77594258,2674.5,2674.3,3.73917]
[1724430870678,0.77594258,2674.5,2674.4,3.73915]
[1724430871598,0.77594258,2674.6,2674.4,3.73915]
[1724430873403,0.77594258,2674.6,2674.4,3.73908]
[1724430874463,0.77594258,2674.7,2674.4,3.73908]
[1724430875500,0.77594258,2674.7,2674.2,23.57935]
[1724430875501,0.77594258,2674.7,2674.2,23.57932]
[1724430875701,0.77594258,2674.7,2674.3,3.73929]
[1724430876090,0.77594258,2674.8,2674.3,3.73929]
[1724430876267,1.72752029,2674.8,2674.3,3.73929]
[1724430876470,0.77594258,2674.7,2674.3,3.73929]
[1724430876685,4.51473258,2674.7,2674.2,3.73932]
[1724430877060,0.77594258,2674.7,2674.2,3.73932]
[1724430878551,0.77594258,2674.7,2674.0,19.84]
[1724430878796,0.77594258,2674.7,2673.9,13.62423]
[1724430878797,0.77594258,2674.8,2674.6,3.73887]
[1724430879093,0.77594258,2674.8,2674.6,6.10317]
[1724430879260,1.16601131,2675.0,2674.7,3.73873]
[1724430879261,0.77594258,2674.9,2674.7,3.73873]
[1724430879896,0.77594258,2675.0,2674.7,3.73866]
[1724430882792,0.77594258,2675.0,2674.7,3.70866]
[1724430883086,1.87567297,2675.0,2674.7,3.70866]
[1724430884106,1.87567297,2675.0,2674.6,2.3643]
[1724430884107,0.77594258,2674.9,2674.5,7.47782]
[1724430885106,0.77594258,2674.9,2674.6,3.73886]
[1724430886133,0.77594258,2674.9,2674.4,19.84]
[1724430886333,0.77594258,2674.9,2674.4,23.57913]
[1724430886507,0.77594258,2674.9,2674.4,23.57908]
[1724430886712,0.77594258,2675.0,2674.5,3.739]
[1724430886938,0.77594258,2675.0,2674.4,23.57908]
[1724430886939,0.77594258,2675.0,2674.6,3.73886]
[1724430887136,9.82644627,2675.4,2674.9,3.73845]
[1724430887137,0.77594258,2675.3,2674.9,3.73845]
[1724430887457,0.77594258,2675.3,2674.8,3.73851]
[1724430887617,3.64681131,2675.5,2674.8,3.73851]
[1724430887618,0.77594258,2675.4,2674.8,3.73851]
[1724430887815,1.74745929,2675.4,2674.8,3.73851]
[1724430889835,0.77594258,2675.3,2674.8,3.73851]
[1724430890160,0.77594258,2675.3,2674.7,6.12263]
[1724430890680,0.77594258,2675.3,2674.7,2.3839]
[1724430890681,4.51384258,2675.3,2674.7,2.3839]
[1724430890997,0.77594258,2675.2,2674.7,2.3839]
[1724430891302,0.45138426,2675.1,2674.7,2.3839]
[1724430892745,0.77594258,2675.1,2674.7,2.3839]
[1724430892955,0.77594258,2675.3,2674.7,2.3839]
[1724430893102,0.77594258,2675.2,2674.7,6.12256]
[1724430893304,0.77594258,2675.3,2674.7,6.12256]
[1724430893643,0.77594258,2675.2,2674.7,6.12256]
[1724430894026,0.77594258,2675.2,2674.7,9.86122]
[1724430894202,0.77594258,2675.2,2674.7,6.12256]
[1724430894441,0.77594258,2675.2,2674.7,9.86122]
[1724430894739,0.77594258,2675.2,2674.7,6.12256]
[1724430894944,0.77594258,2675.2,2674.7,9.86122]
[1724430895126,0.77594258,2675.2,2674.8,0.07476754]
[1724430895315,0.77594258,2675.2,2675.0,3.73822]
[1724430895746,0.77594258,2675.2,2674.9,3.73845]
[1724430895910,0.77594258,2675.2,2674.8,3.73849]
[1724430896106,0.77594258,2675.2,2674.8,7.47701]
[1724430896453,0.77594258,2675.2,2674.7,6.19593]
[1724430896653,0.77594258,2675.1,2674.7,6.19593]
[1724430898128,0.77594258,2675.1,2674.8,3.73858]
[1724430898521,0.77594258,2675.0,2674.8,3.73858]
[1724430898720,0.77594258,2675.0,2674.7,2.4572]
[1724430899161,0.77594258,2675.0,2674.7,6.19585]
[1724430899317,0.77594258,2675.0,2674.8,3.73856]
[1724430899519,0.77594258,2675.0,2674.9,7.4769]
[1724430900335,0.77594258,2675.1,2675.0,3.73831]
[1724430900521,0.77594258,2675.1,2675.0,6.15161]
[1724430901166,0.77594258,2675.1,2675.0,2.4133]
[1724430901359,0.77594258,2675.1,2675.0,6.15161]
[1724430902042,0.77594258,2675.1,2675.0,9.88992]
[1724430902228,1.55484316,2675.4,2675.1,7.47634]
[1724430902229,0.77594258,2675.2,2675.1,7.47634]
[1724430902428,1.16601131,2675.4,2675.2,3.73803]
[1724430902429,0.77594258,2675.3,2675.2,3.73803]
[1724430902654,1.16601131,2675.4,2675.2,3.73803]
[1724430902958,0.77720725,2675.3,2675.2,3.73803]
[1724430903185,1.16601131,2675.4,2675.2,3.73803]
[1724430903461,0.7772192,2675.3,2675.2,3.73803]
[1724430903683,1.16601131,2675.4,2675.3,3.73789]
[1724430904222,1.16601131,2675.4,2675.2,23.57803]
[1724430904577,1.16601131,2675.3,2675.2,23.57803]
[1724430904727,1.16601131,2675.4,2675.3,3.73789]
[1724430905066,1.55484316,2675.5,2675.3,3.73789]
[1724430905232,1.55484316,2675.4,2675.3,3.73789]
[1724430905647,1.55484316,2675.4,2675.3,9.77698]
[1724430905969,1.55484316,2675.5,2675.4,3.73775]
[1724430906163,1.55484316,2675.5,2675.4,23.57775]
[1724430906164,1.16755034,2675.5,2675.4,23.57775]
[1724430906398,0.7782812,2675.5,2675.4,27.3155]
[1724430906539,1.16755034,2675.6,2675.5,3.73761]
[1724430906744,1.16755034,2675.6,2675.5,6.11811]
[1724430906927,1.16755034,2675.6,2675.5,2.3805]
[1724430907131,1.16755034,2675.6,2675.4,19.84]
[1724430907527,2.7223935,2675.6,2675.4,19.84]
[1724430907737,1.16755034,2675.5,2675.4,19.84]
[1724430908147,1.55484316,2675.5,2675.4,19.84]
[1724430908343,1.55484316,2675.6,2675.4,19.84]
[1724430908577,1.55484316,2675.5,2675.4,19.84]
[1724430910032,1.55484316,2675.5,2675.4,23.57775]
[1724430910678,1.55484316,2675.6,2675.5,3.73761]
[1724430911008,1.55484316,2675.6,2675.5,9.94242]
[1724430911269,1.55484316,2675.7,2675.6,3.73747]
[1724430912231,1.55484316,2675.7,2675.5,23.57761]
[1724430912632,1.55484316,2675.7,2675.5,23.57753]
[1724430912884,1.55484316,2675.7,2675.5,27.31505]
[1724430913221,1.55484316,2675.7,2675.5,27.31513]
[1724430913222,1.16790759,2675.6,2675.5,27.31513]
[1724430913485,1.55484316,2675.7,2675.6,7.47494]
[1724430913486,1.16790759,2675.7,2675.6,7.47494]
[1724430914487,1.16790759,2675.8,2675.7,7.47466]
[1724430916383,0.77787457,2675.8,2675.7,7.47466]
[1724430916602,1.16790759,2675.9,2675.8,6.1928]
[1724430916737,1.94566442,2675.9,2675.8,9.93]
[1724430917093,0.77775683,2676.0,2675.9,3.73706]
[1724430917293,0.77775683,2676.0,2675.9,23.57706]
[1724430918391,0.77775683,2676.1,2676.0,3.73692]
[1724430919185,1.55484316,2676.3,2676.1,3.73678]
[1724430919186,0.77775683,2676.3,2676.1,3.73678]
[1724430919358,1.16790759,2676.5,2676.3,6.16]
[1724430919359,0.77775683,2676.5,2676.3,6.16]
[1724430919674,0.77775683,2676.6,2676.3,6.16]
[1724430919832,0.77775683,2676.6,2676.3,6.15991]
[1724430920678,0.77775683,2676.6,2676.4,3.73635]
[1724430921265,0.77775683,2676.6,2676.5,3.73622]
[1724430921465,0.77775683,2676.7,2676.5,7.47244]
[1724430921686,0.77775683,2676.7,2676.5,3.73622]
[1724430921982,1.16790759,2677.0,2676.8,2.2704]
[1724430922168,1.55484316,2677.3,2677.1,3.73538]
[1724430922169,0.7771941,2677.3,2677.1,3.73538]
[1724430922505,2.33088951,2677.9,2677.4,3.73483]
[1724430922506,0.7771941,2677.8,2677.4,3.73483]
[1724430922921,0.7771941,2677.7,2677.4,3.73483]
[1724430923105,0.7771941,2677.7,2677.2,3.73515]
[1724430923312,0.7771941,2677.6,2677.1,2.2704]
[1724430923468,0.7771941,2677.7,2677.0,3.73542]
[1724430923664,1.74609959,2677.7,2677.0,3.73542]
[1724430923971,0.7771941,2677.7,2677.0,3.73542]
[1724430924707,0.7771941,2677.8,2677.0,3.73541]
[1724430925118,0.7771941,2677.8,2677.2,6.01411]
[1724430925333,0.7771941,2677.8,2677.2,9.74925]
[1724430925488,3.2318941,2677.9,2677.2,6.01404]
[1724430925826,0.7771941,2677.9,2677.5,3.73474]
[1724430926416,0.7771941,2678.0,2677.5,3.73474]
[1724430926577,0.7771941,2678.0,2677.3,3.73501]
[1724430927605,3.1558941,2678.1,2677.3,7.46999]
[1724430927822,0.7771941,2678.0,2677.4,3.73496]
[1724430928111,4.11715359,2678.1,2677.4,3.73496]
[1724430928273,3.1558941,2678.1,2677.5,3.73482]
[1724430928808,3.1558941,2678.1,2677.3,3.73504]
[1724430929107,3.1558941,2678.1,2677.3,3.73501]
[1724430929311,6.8899141,2678.1,2677.3,3.73501]
[1724430929467,1.17917517,2678.0,2677.3,3.73501]
[1724430929669,4.91331517,2678.0,2677.2,2.2789]
[1724430930015,1.17917517,2678.0,2677.3,23.57505]
[1724430930170,4.91338517,2678.0,2677.3,19.84]
[1724430930579,1.17917517,2678.0,2677.3,19.84]
[1724430930774,4.83686852,2677.9,2677.3,19.84]
[1724430931105,2.3787,2677.8,2677.3,19.84]
[1724430931516,3.1558941,2678.1,2677.3,22.1189]
[1724430931692,2.3787,2678.1,2677.4,3.73488]
[1724430931894,2.3787,2678.1,2677.4,7.46976]
[1724430932101,2.3787,2678.1,2677.4,3.73485]
[1724430932815,2.3787,2678.1,2677.3,19.84]
[1724430933015,6.11279,2678.1,2677.3,19.84]
[1724430933330,6.11279,2678.1,2677.3,23.57508]
[1724430933530,3.73414,2678.0,2677.3,19.84]
[1724430933735,0.611284,2677.9,2677.3,19.84]
[1724430933891,2.3117,2677.8,2677.3,19.84]
[1724430935085,6.04618,2677.8,2677.3,19.84]
[1724430935514,2.3117,2677.8,2677.3,19.84]
[1724430935812,2.3117,2677.8,2677.1,31.01529]
[1724430936033,2.9774284,2677.8,2677.1,31.01529]
[1724430939016,2.9774284,2677.8,2677.2,3.73523]
[1724430939432,2.3117,2677.8,2677.2,3.73523]
[1724430939850,2.3117,2677.8,2677.2,7.4704]
[1724430940038,2.3117,2677.8,2677.2,3.73517]
[1724430940233,2.3117,2677.8,2677.2,3.73516]
[1724430941378,3.73484,2677.5,2677.1,27.28]
[1724430941524,2.2989,2677.4,2677.1,27.28]
[1724430941871,2.2989,2677.4,2676.7,23.57593]
[1724430942222,2.2989,2677.4,2676.8,3.73579]